bitfinex/quotes_BTCUSD_20251213
["timestamp","ask_amount","ask_price","bid_price","bid_amount"]
[1765660475728,0.83210981,90101.0,90100.0,1e-08]
[1765660475871,0.83410981,90101.0,90100.0,1e-08]
[1765660476275,0.77839311,90101.0,90100.0,1e-08]
[1765660477115,0.77439311,90101.0,90100.0,1e-08]
[1765660477346,0.77539311,90101.0,90100.0,1e-08]
[1765660477516,0.77639311,90101.0,90100.0,1e-08]
[1765660479315,0.77539311,90101.0,90100.0,1e-08]
[1765660479862,0.77639311,90101.0,90100.0,1e-08]
[1765660481220,0.78844311,90101.0,90100.0,1e-08]
[1765660481396,0.82804311,90101.0,90100.0,1e-08]
[1765660486071,0.77639311,90101.0,90100.0,1e-08]
[1765660486300,0.81599311,90101.0,90100.0,1e-08]
[1765660501819,0.77639311,90101.0,90100.0,1e-08]
[1765660509036,0.81641311,90101.0,90100.0,1e-08]
[1765660509247,0.84004311,90101.0,90100.0,1e-08]
[1765660513708,0.80002311,90101.0,90100.0,1e-08]
[1765660514078,0.82380311,90101.0,90100.0,1e-08]
[1765660514961,0.80002311,90101.0,90100.0,1e-08]
[1765660516973,0.80002311,90101.0,90100.0,0.01640001]
[1765660517180,0.80002311,90101.0,90100.0,0.04003001]
[1765660518172,0.79902311,90101.0,90100.0,0.04003001]
[1765660518327,0.55482311,90101.0,90100.0,0.04003001]
[1765660518522,0.55582311,90101.0,90100.0,0.04003001]
[1765660518720,0.55382311,90101.0,90100.0,0.04003001]
[1765660519132,0.55582311,90101.0,90100.0,0.04003001]
[1765660519481,0.55382311,90101.0,90100.0,1e-08]
[1765660521893,0.59384311,90101.0,90100.0,1e-08]
[1765660522414,0.55382311,90101.0,90100.0,1e-08]
[1765660529135,0.57005311,90101.0,90100.0,1e-08]
[1765660529341,0.57978311,90101.0,90100.0,1e-08]
[1765660532424,0.58078311,90101.0,90100.0,1e-08]
[1765660532851,0.58178311,90101.0,90100.0,1e-08]
[1765660536376,0.54192311,90101.0,90100.0,1e-08]
[1765660537339,0.55714311,90101.0,90100.0,1e-08]
[1765660537538,0.58178311,90101.0,90100.0,1e-08]
[1765660547613,0.55714311,90101.0,90100.0,1e-08]
[1765660548731,0.58178311,90101.0,90100.0,1e-08]
[1765660572510,0.59158311,90101.0,90100.0,1e-08]
[1765660583487,0.55172311,90101.0,90100.0,1e-08]
[1765660587113,0.60721809,90101.0,90100.0,1e-08]
[1765660587522,0.55172311,90101.0,90100.0,1e-08]
[1765660588052,0.54192311,90101.0,90100.0,1e-08]
[1765660588199,0.54192311,90101.0,90100.0,0.03846001]
[1765660588589,0.54192311,90101.0,90100.0,1e-08]
[1765660588906,0.54092311,90101.0,90100.0,1e-08]
[1765660589312,0.54192311,90101.0,90100.0,1e-08]
[1765660589724,0.54092311,90101.0,90100.0,1e-08]
[1765660589928,0.54192311,90101.0,90100.0,1e-08]
[1765660591853,0.54192311,90101.0,90100.0,0.03846001]
[1765660594751,0.54192311,90101.0,90100.0,0.01565001]
[1765660594967,0.54192311,90101.0,90100.0,0.03846001]
[1765660596774,0.54192311,90101.0,90100.0,0.01565001]
[1765660596958,0.54192311,90101.0,90100.0,0.03846001]
[1765660598196,0.54092311,90101.0,90100.0,0.03846001]
[1765660598660,0.53992311,90101.0,90100.0,0.03846001]
[1765660599639,0.24922311,90101.0,90100.0,0.03846001]
[1765660599843,0.24922311,90101.0,90100.0,0.07841864]
[1765660600037,0.53992311,90101.0,90100.0,0.07841864]
[1765660600245,0.53992311,90101.0,90100.0,0.03846001]
[1765660600836,0.53992311,90101.0,90100.0,0.03946001]
[1765660601250,0.53992311,90101.0,90100.0,0.07940526]
[1765660601451,0.31795,90101.0,90100.0,0.07940526]
[1765660602048,0.31795,90101.0,90100.0,0.07939649]
[1765660602458,0.31795,90101.0,90100.0,0.04046001]
[1765660603977,0.2907,90101.0,90100.0,0.15126001]
[1765660605205,0.2907,90101.0,90100.0,0.19118273]
[1765660607355,0.51267311,90101.0,90100.0,0.19118273]
[1765660608104,0.0110984,90103.0,90102.0,0.1108]
[1765660608330,0.0110984,90103.0,90102.0,0.18637442]
[1765660608538,0.0110984,90103.0,90102.0,0.20918442]
[1765660608946,0.0110984,90103.0,90102.0,0.09838442]
[1765660609176,0.0110984,90103.0,90102.0,0.03846]
[1765660609391,0.0110984,90103.0,90102.0,0.14926]
[1765660609559,0.0110984,90103.0,90102.0,0.15126]
[1765660610368,0.0110984,90103.0,90102.0,0.15326]
[1765660621984,0.0110984,90103.0,90102.0,0.04246]
[1765660623912,0.0110984,90103.0,90102.0,0.15326]
[1765660624174,0.0110984,90103.0,90102.0,0.04246]
[1765660625113,0.0110984,90103.0,90102.0,0.01965]
[1765660625446,0.0110984,90103.0,90102.0,0.04299]
[1765660625638,0.0110984,90103.0,90102.0,0.01965]
[1765660625810,0.0286184,90103.0,90102.0,0.0319176]
[1765660626010,0.51267065,90102.0,90101.0,0.0299176]
[1765660626285,0.30659,90101.0,90100.0,1e-08]
[1765660626461,0.33108,90101.0,90100.0,1e-08]
[1765660626893,0.36123707,90101.0,90100.0,1e-08]
[1765660627374,0.07053707,90101.0,90100.0,1e-08]
[1765660628124,0.12603205,90101.0,90100.0,1e-08]
[1765660628293,0.12703205,90101.0,90100.0,1e-08]
[1765660628458,0.07153707,90101.0,90100.0,1e-08]
[1765660628909,0.12803205,90101.0,90100.0,1e-08]
[1765660630972,0.07253707,90101.0,90100.0,1e-08]
[1765660631174,0.23853967,90101.0,90100.0,1e-08]
[1765660632348,0.12803205,90101.0,90100.0,1e-08]
[1765660632768,0.15577868,90101.0,90100.0,1e-08]
[1765660641921,0.44647868,90101.0,90100.0,1e-08]
[1765660642115,0.41873205,90101.0,90100.0,1e-08]
[1765660642958,0.41773205,90101.0,90100.0,1e-08]
[1765660643163,0.41673205,90101.0,90100.0,1e-08]
[1765660643370,0.42173205,90101.0,90100.0,1e-08]
[1765660644171,0.59685795,90097.0,90096.0,1e-08]
[1765660644369,0.61992795,90097.0,90096.0,1e-08]
[1765660644774,0.6243743,90097.0,90096.0,1e-08]
[1765660645838,0.56887932,90097.0,90096.0,1e-08]
[1765660646147,0.56332932,90097.0,90096.0,1e-08]
[1765660646345,0.56732932,90097.0,90096.0,1e-08]
[1765660646574,0.55112932,90097.0,90096.0,1e-08]
[1765660647013,0.54912932,90097.0,90096.0,1e-08]
[1765660647217,0.54812932,90097.0,90096.0,1e-08]
[1765660647420,0.54912932,90097.0,90096.0,1e-08]
[1765660649119,0.54712932,90097.0,90096.0,1e-08]
[1765660649319,0.54912932,90097.0,90096.0,1e-08]
[1765660649796,0.54812932,90097.0,90096.0,1e-08]
[1765660650147,0.54912932,90097.0,90096.0,1e-08]
[1765660651531,0.58756932,90097.0,90096.0,1e-08]
[1765660653141,0.56419932,90097.0,90096.0,1e-08]
[1765660653324,0.54912932,90097.0,90096.0,1e-08]
[1765660654751,0.58756932,90097.0,90096.0,1e-08]
[1765660655561,0.69826932,90097.0,90096.0,1e-08]
[1765660658170,0.58756932,90097.0,90096.0,1e-08]
[1765660661035,0.69826932,90097.0,90096.0,1e-08]
[1765660662660,0.80877694,90097.0,90096.0,1e-08]
[1765660663486,0.69826932,90097.0,90096.0,1e-08]
[1765660673659,0.6430643,90097.0,90096.0,1e-08]
[1765660681559,0.69826932,90097.0,90096.0,1e-08]
[1765660686227,0.7086468,90097.0,90096.0,1e-08]
[1765660707681,0.75866519,90097.0,90096.0,1e-08]
[1765660708747,0.80088886,90097.0,90096.0,1e-08]
[1765660711418,1.04508886,90097.0,90096.0,1e-08]
[1765660715031,1.04509576,90097.0,90096.0,1e-08]
[1765660718467,1.00287209,90097.0,90096.0,1e-08]
[1765660722287,1.00287089,90097.0,90096.0,1e-08]
[1765660729333,1.00287124,90097.0,90096.0,1e-08]
[1765660730394,0.92429622,90097.0,90096.0,1e-08]
[1765660730520,0.78619285,90097.0,90096.0,1e-08]
[1765660730729,0.78084932,90097.0,90096.0,1e-08]
[1765660733478,0.82002932,90097.0,90096.0,1e-08]
[1765660736876,0.8755243,90097.0,90096.0,1e-08]
[1765660742449,0.88590348,90097.0,90096.0,1e-08]
[1765660743634,0.93072932,90097.0,90096.0,1e-08]
[1765660744375,0.90686932,90097.0,90096.0,1e-08]
[1765660744515,0.93088932,90097.0,90096.0,1e-08]
[1765660747330,0.94126889,90097.0,90096.0,1e-08]
[1765660757060,0.91724889,90097.0,90096.0,1e-08]
[1765660757262,0.90192889,90097.0,90096.0,1e-08]
[1765660757495,0.94229889,90097.0,90096.0,1e-08]
[1765660757694,0.79122889,90097.0,90096.0,1e-08]
[1765660757903,0.78084932,90097.0,90096.0,1e-08]
[1765660760710,0.79719932,90097.0,90096.0,1e-08]
[1765660760916,0.8767143,90097.0,90096.0,1e-08]
[1765660769351,0.88709848,90097.0,90096.0,1e-08]
[1765660772435,1.05281112,90097.0,90096.0,1e-08]
[1765660773441,0.94211112,90097.0,90096.0,1e-08]
[1765660773602,1.05281112,90097.0,90096.0,1e-08]
[1765660774201,0.9423035,90097.0,90096.0,1e-08]
[1765660785691,0.93191932,90097.0,90096.0,1e-08]
[1765660786082,0.94230296,90097.0,90096.0,1e-08]
[1765660791307,0.94230148,90097.0,90096.0,1e-08]
[1765660800263,0.92478148,90097.0,90096.0,1e-08]
[1765660800494,0.94230148,90097.0,90096.0,1e-08]
[1765660800668,1.0528091,90097.0,90096.0,1e-08]
[1765660801505,0.94230148,90097.0,90096.0,1e-08]
[1765660804492,0.92478148,90097.0,90096.0,1e-08]
[1765660804696,0.94230148,90097.0,90096.0,1e-08]
[1765660807176,0.99231987,90097.0,90096.0,1e-08]
[1765660808004,0.88441148,90097.0,90096.0,1e-08]
[1765660808200,0.79023148,90097.0,90096.0,1e-08]
[1765660808405,0.79323148,90097.0,90096.0,1e-08]
[1765660809040,0.79023148,90097.0,90096.0,1e-08]
[1765660809668,0.77571148,90097.0,90096.0,1e-08]
[1765660809993,0.77984932,90097.0,90096.0,1e-08]
[1765660810198,0.78084932,90097.0,90096.0,1e-08]
[1765660812313,0.8526743,90097.0,90096.0,1e-08]
[1765660812558,0.8754843,90097.0,90096.0,1e-08]
[1765660817004,0.79717932,90097.0,90096.0,1e-08]
[1765660817229,0.8363443,90097.0,90096.0,1e-08]
[1765660818348,0.78084932,90097.0,90096.0,1e-08]
[1765660818552,0.8363443,90097.0,90096.0,1e-08]
[1765660821473,0.78084932,90097.0,90096.0,1e-08]
[1765660822043,0.8363443,90097.0,90096.0,1e-08]
[1765660826102,0.78084932,90097.0,90096.0,1e-08]
[1765660826873,0.8363443,90097.0,90096.0,1e-08]
[1765660831691,0.78084932,90097.0,90096.0,1e-08]
[1765660832551,0.76332932,90097.0,90096.0,1e-08]
[1765660832773,0.78084932,90097.0,90096.0,1e-08]
[1765660833412,0.89154932,90097.0,90096.0,1e-08]
[1765660834523,0.8363443,90097.0,90096.0,1e-08]
[1765660836376,0.8590243,90097.0,90096.0,1e-08]
[1765660838818,0.78084932,90097.0,90096.0,1e-08]
[1765660839039,0.8363443,90097.0,90096.0,1e-08]
[1765660839582,0.78084932,90097.0,90096.0,0.04152001]
[1765660840529,0.78084932,90097.0,90096.0,0.01665001]
[1765660840731,0.78084932,90097.0,90096.0,1e-08]
[1765660840929,0.89154932,90097.0,90096.0,1e-08]
[1765660846062,0.87402932,90097.0,90096.0,1e-08]
[1765660846263,0.78084932,90097.0,90096.0,1e-08]
[1765660850732,0.76332932,90097.0,90096.0,1e-08]
[1765660850933,0.78084932,90097.0,90096.0,1e-08]
[1765660858817,0.89154932,90097.0,90096.0,1e-08]
[1765660862626,0.78084932,90097.0,90096.0,1e-08]
[1765660862850,0.79649932,90097.0,90096.0,1e-08]
[1765660863057,0.8754543,90097.0,90096.0,1e-08]
[1765660863485,0.8519943,90097.0,90096.0,1e-08]
[1765660864305,0.81995932,90097.0,90096.0,1e-08]
[1765660864506,0.93065932,90097.0,90096.0,1e-08]
[1765660868783,0.78084932,90097.0,90096.0,1e-08]
[1765660876065,0.89154932,90097.0,90096.0,1e-08]
[1765660882424,0.93065932,90097.0,90096.0,1e-08]
[1765660894960,0.8754543,90097.0,90096.0,1e-08]
[1765660895486,0.93065932,90097.0,90096.0,1e-08]
[1765660899859,0.8754543,90097.0,90096.0,1e-08]
[1765660900063,0.93065932,90097.0,90096.0,1e-08]
[1765660905723,0.93065932,90097.0,90096.0,1e-08]
[1765660909866,0.8754543,90097.0,90096.0,1e-08]
[1765660910274,0.93065932,90097.0,90096.0,1e-08]
[1765660912490,0.8754543,90097.0,90096.0,1e-08]
[1765660913391,0.93065932,90097.0,90096.0,1e-08]
[1765660920388,0.8754543,90097.0,90096.0,1e-08]
[1765660920979,0.93065932,90097.0,90096.0,1e-08]
[1765660926530,0.93838932,90097.0,90096.0,1e-08]
[1765660927150,0.8831843,90097.0,90096.0,1e-08]
[1765660930662,0.8363443,90097.0,90096.0,1e-08]
[1765660936582,0.8751343,90097.0,90096.0,1e-08]
[1765660936745,0.62339775,90091.0,90090.0,0.0002]
[1765660937375,0.65338724,90091.0,90090.0,0.0002]
[1765660941184,0.65338724,90091.0,90090.0,0.02378]
[1765660941386,0.54268724,90091.0,90090.0,0.02378]
[1765660941585,0.54268724,90091.0,90090.0,0.04028]
[1765660944015,0.54268724,90091.0,90090.0,0.04128]
[1765660948682,0.54268724,90091.0,90090.0,0.07126185]
[1765660949265,0.54268724,90091.0,90090.0,0.0712622]
[1765660951852,0.56020724,90091.0,90090.0,0.0712622]
[1765660953782,0.56020724,90091.0,90090.0,0.04128]
[1765660954755,0.56020724,90091.0,90090.0,0.0712622]
[1765660955551,0.56020724,90091.0,90090.0,0.04128]
[1765660955747,0.67090724,90091.0,90090.0,0.0311822]
[1765660956001,0.67090724,90091.0,90090.0,0.0012]
[1765660956868,0.67090724,90091.0,90090.0,0.0002]
[1765660958639,0.67090724,90091.0,90090.0,0.03893]
[1765660958917,0.56020724,90091.0,90090.0,0.0002]
[1765660965069,0.56020724,90091.0,90090.0,0.0301822]
[1765660965272,0.56020724,90091.0,90090.0,0.0002]
[1765660965459,0.56020724,90091.0,90090.0,0.0301822]
[1765660965639,0.67090724,90091.0,90090.0,0.0301822]
[1765660966015,0.56020724,90091.0,90090.0,0.0301822]
[1765660966520,0.56020724,90091.0,90090.0,0.0002]
[1765660966717,0.67090724,90091.0,90090.0,0.0002]
[1765660969261,0.56020724,90091.0,90090.0,0.0002]
[1765660971140,0.67090724,90091.0,90090.0,0.0002]
[1765660971342,0.67090724,90091.0,90090.0,0.0301822]
[1765660977061,0.67090724,90091.0,90090.0,0.0002]
[1765660981569,0.56020724,90091.0,90090.0,0.0002]
[1765660982992,0.67090724,90091.0,90090.0,0.0002]
[1765660998582,0.56020724,90091.0,90090.0,0.0002]
[1765661005767,0.67090724,90091.0,90090.0,0.0002]
[1765661006548,0.56020724,90091.0,90090.0,0.0002]
[1765661006924,0.67090724,90091.0,90090.0,0.0002]
[1765661009668,0.65338724,90091.0,90090.0,0.0002]
[1765661009874,0.67090724,90091.0,90090.0,0.0002]
[1765661010783,0.56020724,90091.0,90090.0,0.0002]
[1765661011495,0.67090724,90091.0,90090.0,0.0002]
[1765661011849,0.67090724,90091.0,90090.0,0.0301822]
[1765661012053,0.56020724,90091.0,90090.0,0.0002]
[1765661012366,0.56020724,90091.0,90090.0,0.0301822]
[1765661013166,0.67090724,90091.0,90090.0,0.0301822]
[1765661013327,0.56020724,90091.0,90090.0,0.0301822]
[1765661014505,0.67090724,90091.0,90090.0,0.0301822]
[1765661015291,0.56020724,90091.0,90090.0,0.0301822]
[1765661015903,0.67090724,90091.0,90090.0,0.0301822]
[1765661019476,0.56020724,90091.0,90090.0,0.0301822]
[1765661023561,0.56020724,90091.0,90090.0,0.0002]
[1765661027090,0.67090724,90091.0,90090.0,0.0002]
[1765661027286,0.66590724,90091.0,90090.0,0.0002]
[1765661028807,0.55520724,90091.0,90090.0,0.0002]
[1765661029264,0.61070222,90091.0,90090.0,0.0002]
[1765661029425,0.55520724,90091.0,90090.0,0.0002]
[1765661030763,0.66590724,90091.0,90090.0,0.0002]
[1765661031594,0.55520724,90091.0,90090.0,0.0002]
[1765661032269,0.71311724,90091.0,90090.0,0.0002]
[1765661032669,0.69041724,90091.0,90090.0,0.0002]
[1765661034070,0.67392724,90091.0,90090.0,0.0002]
[1765661034271,0.56322724,90091.0,90090.0,0.0002]
[1765661034986,0.61872222,90091.0,90090.0,0.0002]
[1765661035164,0.56322724,90091.0,90090.0,0.0002]
[1765661040997,0.67392724,90091.0,90090.0,0.0002]
[1765661041402,0.57928724,90091.0,90090.0,0.0002]
[1765661041613,0.60247724,90091.0,90090.0,0.0002]
[1765661041818,0.66835623,90091.0,90090.0,0.0002]
[1765661042058,0.61286125,90091.0,90090.0,0.0002]
[1765661042352,0.65797222,90091.0,90090.0,0.0002]
[1765661042803,0.65897222,90091.0,90090.0,0.0002]
[1765661043148,0.65797222,90091.0,90090.0,0.0002]
[1765661043359,0.65997222,90091.0,90090.0,0.0002]
[1765661043559,0.66197222,90091.0,90090.0,0.0002]
[1765661064335,0.71717724,90091.0,90090.0,0.0002]
[1765661071191,0.72755846,90091.0,90090.0,0.0002]
[1765661080835,0.61685846,90091.0,90090.0,0.0002]
[1765661081036,0.72755846,90091.0,90090.0,0.0002]
[1765661085162,0.71227846,90091.0,90090.0,0.0002]
[1765661085370,0.72755846,90091.0,90090.0,0.0002]
[1765661086149,0.72355846,90091.0,90090.0,0.0002]
[1765661086573,0.72755846,90091.0,90090.0,0.0002]
[1765661088080,0.71717724,90091.0,90090.0,0.0002]
[1765661088626,0.72755635,90091.0,90090.0,0.0002]
[1765661088762,0.71717724,90091.0,90090.0,0.0002]
[1765661089944,0.72755606,90091.0,90090.0,0.0002]
[1765661090498,0.71717724,90091.0,90090.0,0.0002]
[1765661090697,0.72755447,90091.0,90090.0,0.0002]
[1765661097299,0.96656784,90091.0,90090.0,0.0002]
[1765661101394,1.67342107,90089.0,90088.0,0.00023952]
[1765661101596,1.7004183,90089.0,90088.0,0.00023952]
[1765661101744,1.74930357,90089.0,90088.0,0.00023952]
[1765661101947,1.86425836,90089.0,90088.0,0.00023952]
[1765661102568,1.86625836,90089.0,90088.0,0.00023952]
[1765661103195,1.86825836,90089.0,90088.0,0.00023952]
[1765661106427,2.11245836,90089.0,90088.0,0.00023952]
[1765661109795,2.11245836,90089.0,90070.0,0.0002]
[1765661109796,0.67344079,90081.0,90070.0,0.0002]
[1765661110015,0.81283987,90081.0,90080.0,0.00027282]
[1765661110210,0.83724987,90081.0,90080.0,0.00027282]
[1765661110863,0.87060642,90081.0,90080.0,0.00027282]
[1765661111062,0.98211404,90081.0,90080.0,0.00027282]
[1765661111315,0.98311404,90081.0,90080.0,0.00027282]
[1765661111453,0.98211404,90081.0,90080.0,0.00027282]
[1765661111861,0.98311404,90081.0,90080.0,0.00027282]
[1765661112431,1.11680642,90081.0,90080.0,0.00027282]
[1765661113654,1.11841929,90081.0,90080.0,0.00027282]
[1765661115027,1.13530922,90081.0,90080.0,0.00027282]
[1765661115431,1.13530922,90081.0,90080.0,0.00051236]
[1765661116321,1.13430922,90081.0,90080.0,0.00051236]
[1765661116616,1.24381684,90081.0,90080.0,0.00051236]
[1765661117191,1.24481684,90081.0,90080.0,0.00051236]
[1765661120320,0.64006705,90071.0,90070.0,0.00010275]
[1765661120544,0.69065688,90071.0,90070.0,0.00010275]
[1765661120719,0.71506688,90071.0,90070.0,0.00010275]
[1765661120917,0.74842599,90071.0,90070.0,0.00010275]
[1765661122257,0.58827599,90071.0,90070.0,0.00010275]
[1765661122638,0.65517097,90071.0,90070.0,0.00010275]
[1765661122843,0.65726104,90071.0,90070.0,0.00010275]
[1765661123271,0.60176606,90071.0,90070.0,0.00010275]
[1765661124926,0.81578593,90071.0,90070.0,0.00010275]
[1765661125881,0.81578593,90071.0,90070.0,0.00040222]
[1765661127130,0.7911361,90071.0,90070.0,0.00040222]
[1765661127331,0.66774462,90071.0,90070.0,0.00040222]
[1765661127719,0.77844462,90071.0,90070.0,0.00040222]
[1765661129978,1.02264462,90071.0,90070.0,0.00040222]
[1765661134872,0.80991623,90071.0,90070.0,0.00040222]
[1765661137592,0.80991623,90071.0,90070.0,0.03858222]
[1765661137793,0.79239623,90071.0,90070.0,0.03858222]
[1765661137989,0.80991623,90071.0,90070.0,0.03858222]
[1765661139279,0.50169623,90071.0,90070.0,0.03858222]
[1765661139477,0.80991623,90071.0,90070.0,0.03858222]
[1765661140675,0.80891623,90071.0,90070.0,0.03858222]
[1765661141111,0.80791623,90071.0,90070.0,0.03858222]
[1765661144232,0.80791623,90071.0,90070.0,0.03848664]
[1765661161553,0.91861623,90071.0,90070.0,0.00030664]
[1765661162253,0.80791623,90071.0,90070.0,0.00030664]
[1765661167649,0.80791623,90071.0,90070.0,0.00928664]
[1765661172088,0.80791623,90071.0,90070.0,0.00030664]
[1765661176653,0.96465623,90071.0,90070.0,0.00030664]
[1765661181140,0.96565623,90071.0,90070.0,0.00030664]
[1765661181915,0.96465623,90071.0,90070.0,0.00030664]
[1765661182126,0.96565623,90071.0,90070.0,0.00030664]
[1765661182322,0.96565623,90071.0,90070.0,0.00021131]
[1765661183291,0.96665623,90071.0,90070.0,0.00021131]
[1765661192055,0.80991623,90071.0,90070.0,0.00021131]
[1765661192206,0.92061623,90071.0,90070.0,0.00021131]
[1765661193372,0.94355623,90071.0,90070.0,0.00021131]
[1765661193569,0.92061623,90071.0,90070.0,0.00021131]
[1765661194083,0.95949623,90071.0,90070.0,0.00021131]
[1765661196556,0.97195623,90071.0,90070.0,0.00021131]
[1765661202787,1.07934425,90071.0,90070.0,0.00021131]
[1765661204622,0.97195623,90071.0,90070.0,0.00021131]
[1765661208911,0.86125623,90071.0,90070.0,0.00021131]
[1765661209097,0.97195623,90071.0,90070.0,0.00021131]
[1765661209623,1.02197462,90071.0,90070.0,0.00021131]
[1765661209780,1.03234563,90071.0,90070.0,0.00021131]
[1765661209979,1.14285325,90071.0,90070.0,0.00021131]
[1765661210283,1.13248224,90071.0,90070.0,0.00021131]
[1765661214181,1.14284346,90071.0,90070.0,0.00021131]
[1765661215336,1.13248224,90071.0,90070.0,0.00021131]
[1765661223352,1.02197462,90071.0,90070.0,0.00021131]
[1765661228960,1.03232904,90071.0,90070.0,0.00021131]
[1765661229292,1.03232924,90071.0,90070.0,0.00021131]
[1765661231227,1.03232924,90071.0,90050.0,0.02308247]
[1765661231228,1.56281475,90051.0,90050.0,0.00057247]
[1765661231382,0.6183196,90047.0,90023.0,0.03988824]
[1765661231583,1.70032224,90047.0,90022.0,0.03988824]
[1765661231908,0.90280263,90047.0,90046.0,0.00080895]
[1765661232114,1.75630263,90047.0,90046.0,0.00080895]
[1765661232321,1.25030263,90047.0,90046.0,0.00080895]
[1765661232701,1.49450263,90047.0,90046.0,0.00080895]
[1765661233251,2.20474406,90047.0,90046.0,1e-08]
[1765661233425,2.20674406,90047.0,90046.0,1e-08]
[1765661233639,1.68864942,90041.0,90040.0,1e-08]
[1765661233786,1.81667704,90041.0,90040.0,1e-08]
[1765661233987,1.83928704,90041.0,90040.0,1e-08]
[1765661234792,1.83937277,90041.0,90040.0,1e-08]
[1765661235239,0.51287038,90021.0,90020.0,0.0002]
[1765661235410,0.64802038,90021.0,90020.0,0.0002]
[1765661235750,0.53039038,90021.0,90020.0,0.03825]
[1765661235925,0.53937038,90021.0,90020.0,0.0002]
[1765661236548,0.65107038,90021.0,90020.0,0.0002]
[1765661236956,0.65007038,90021.0,90020.0,0.0002]
[1765661237146,0.65007038,90021.0,90020.0,0.0012]
[1765661237345,0.65007038,90021.0,90020.0,0.0022]
[1765661239420,0.65007038,90021.0,90020.0,0.0029792]
[1765661240851,0.53937038,90021.0,90020.0,0.0410292]
[1765661242142,0.53039038,90021.0,90020.0,0.0410292]
[1765661246055,0.30822,90021.0,90020.0,0.0410292]
[1765661246256,0.01752,90021.0,90020.0,0.26320205]
[1765661247020,0.10525908,90022.0,90021.0,0.1108]
[1765661247332,0.10525908,90022.0,90021.0,0.1507]
[1765661247459,0.10525908,90022.0,90021.0,0.26207038]
[1765661247660,0.10525908,90022.0,90021.0,0.37287038]
[1765661248785,0.10525908,90022.0,90021.0,0.37787038]
[1765661249187,0.10525908,90022.0,90021.0,0.38187038]
[1765661251646,0.10525908,90022.0,90021.0,0.39085038]
[1765661252643,0.10525908,90022.0,90021.0,0.3915996]
[1765661254053,0.01110777,90027.0,90026.0,0.1108]
[1765661254334,0.01110777,90027.0,90026.0,0.13586]
[1765661254542,0.01110777,90027.0,90026.0,0.15968]
[1765661255015,0.39595908,90028.0,90026.0,0.04888]
[1765661255138,0.39595908,90028.0,90027.0,0.1507]
[1765661255381,0.04447288,90040.0,90037.0,0.01110654]
[1765661255580,0.04447288,90040.0,90036.0,0.00898]
[1765661255581,0.02862617,90040.0,90036.0,0.00898]
[1765661255778,0.2907,90039.0,90036.0,0.00898]
[1765661256025,0.2907,90039.0,90037.0,0.02382]
[1765661256223,0.2907,90039.0,90038.0,0.01608]
[1765661256423,0.30180629,90039.0,90038.0,0.01608]
[1765661256623,0.30180629,90039.0,90038.0,0.1507]
[1765661257510,0.30180629,90039.0,90038.0,0.0399]
[1765661257910,0.30180629,90039.0,90038.0,0.0419]
[1765661258654,0.30180629,90039.0,90038.0,0.0439]
[1765661266157,0.30180629,90039.0,90038.0,0.1547]
[1765661266689,0.30180629,90039.0,90038.0,0.0439]
[1765661271726,0.30180629,90039.0,90038.0,0.04413971]
[1765661278925,0.30180629,90039.0,90038.0,0.15493971]
[1765661279408,0.30180629,90039.0,90038.0,0.04413971]
[1765661280633,0.01752,90040.0,90038.0,0.04413971]
[1765661280833,0.01752,90040.0,90039.0,0.03989]
[1765661281008,8.573e-05,90041.0,90039.0,0.26201395]
[1765661281190,8.573e-05,90041.0,90040.0,0.15069]
[1765661281394,8.573e-05,90041.0,90040.0,0.19064335]
[1765661281593,8.573e-05,90041.0,90040.0,0.15069]
[1765661282233,8.573e-05,90041.0,90040.0,0.03989]
[1765661282931,8.573e-05,90041.0,90040.0,0.04189]
[1765661283136,8.573e-05,90041.0,90040.0,0.04289]
[1765661287187,8.573e-05,90041.0,90040.0,0.2650135]
[1765661287365,8.573e-05,90041.0,90040.0,0.32493792]
[1765661287810,8.573e-05,90041.0,90040.0,0.2650135]
[1765661288117,8.573e-05,90041.0,90040.0,0.32493792]
[1765661288699,8.573e-05,90041.0,90040.0,0.32496917]
[1765661289016,8.573e-05,90041.0,90040.0,0.04289]
[1765661292809,8.573e-05,90041.0,90040.0,0.2650135]
[1765661293038,8.573e-05,90041.0,90040.0,0.32496917]
[1765661293242,8.573e-05,90041.0,90040.0,0.2650135]
[1765661297767,8.573e-05,90041.0,90040.0,0.04289]
[1765661299553,8.573e-05,90041.0,90040.0,0.05187]
[1765661301439,8.573e-05,90041.0,90040.0,0.2739935]
[1765661301646,8.573e-05,90041.0,90040.0,0.05187]
[1765661304261,8.573e-05,90041.0,90040.0,0.11182567]
[1765661306540,8.573e-05,90041.0,90040.0,0.22262567]
[1765661308130,8.573e-05,90041.0,90040.0,0.11182567]
[1765661308338,8.573e-05,90041.0,90040.0,0.05187]
[1765661316595,8.573e-05,90041.0,90040.0,0.16267]
[1765661319802,8.573e-05,90041.0,90040.0,0.05187]
[1765661323576,8.573e-05,90041.0,90040.0,0.11187975]
[1765661328164,8.573e-05,90041.0,90040.0,0.05187]
[1765661328344,8.573e-05,90041.0,90040.0,0.11187383]
[1765661330738,8.573e-05,90041.0,90040.0,0.05187]
[1765661331315,8.573e-05,90041.0,90040.0,0.11187226]
[1765661331515,8.573e-05,90041.0,90040.0,0.11187252]
[1765661331922,8.573e-05,90041.0,90040.0,0.05187]
[1765661332122,8.573e-05,90041.0,90040.0,0.11187225]
[1765661332638,8.573e-05,90041.0,90040.0,0.05187]
[1765661342451,8.573e-05,90041.0,90040.0,0.11187566]
[1765661342597,8.573e-05,90041.0,90040.0,0.05187]
[1765661349706,8.573e-05,90041.0,90040.0,0.11187724]
[1765661351611,8.573e-05,90041.0,90040.0,0.05187]
[1765661354793,8.573e-05,90041.0,90040.0,0.2739935]
[1765661355002,8.573e-05,90041.0,90040.0,0.05187]
[1765661356799,0.03344654,90041.0,90040.0,0.05187]
[1765661357898,0.03344654,90041.0,90040.0,0.11187985]
[1765661358214,0.03344654,90041.0,90040.0,0.05187]
[1765661361503,0.03344654,90041.0,90040.0,0.11188001]
[1765661361689,0.03344654,90041.0,90040.0,0.05187]
[1765661373623,0.03344654,90041.0,90040.0,0.11187871]
[1765661373804,0.03344654,90041.0,90040.0,0.05187]
[1765661374409,0.03344654,90041.0,90040.0,0.11187858]
[1765661376336,0.03344654,90041.0,90040.0,0.05187]
[1765661381188,0.25556757,90041.0,90040.0,0.05187]
[1765661384524,0.03344654,90041.0,90040.0,0.05187]
[1765661401465,0.03344654,90041.0,90040.0,0.02709]
[1765661401670,0.03344654,90041.0,90040.0,0.05098]
[1765661403761,0.25556757,90041.0,90040.0,0.05098]
[1765661404980,0.03344654,90041.0,90040.0,0.05098]
[1765661405977,0.25556757,90041.0,90040.0,0.05098]
[1765661406610,0.25556757,90041.0,90040.0,0.11099099]